bitfinex-derivatives/quotes_SOLF0:USTF0_20250221
["timestamp","ask_amount","ask_price","bid_price","bid_amount"]
[1740165991396,0.04227909,169.4,169.39,5.9034]
[1740165991593,3.6584,169.48,169.39,5.9034]
[1740165991793,3.6584,169.48,169.41,15.04428508]
[1740165991997,3.6584,169.48,169.44,5.9015]
[1740165992194,3.6584,169.48,169.41,15.04428508]
[1740165992394,3.6584,169.48,169.29,159.0169]
[1740165992604,194.0,169.47,169.35,15.04428508]
[1740165992897,0.04263093,169.4,169.37,0.03778978]
[1740165993297,209.04428508,169.46,169.35,20.94898508]
[1740165993494,0.03934296,169.4,169.37,0.0381915]
[1740165993999,1.81064296,169.4,169.37,0.0381915]
[1740165994199,3.57344296,169.4,169.37,0.0381915]
[1740165994703,3.57344296,169.4,169.34,5.905]
[1740165995100,5.45944296,169.4,169.32,15.04428508]
[1740165995401,194.0,169.39,169.3,5.9062]
[1740165995604,194.0,169.39,169.29,15.04428508]
[1740165995799,5.9048,169.35,169.29,20.95108508]
[1740165996000,0.04401735,169.36,169.32,0.04324599]
[1740165996700,5.94871735,169.36,169.32,0.04324599]
[1740165996901,0.04401735,169.36,169.28,5.9071]
[1740165997200,194.0,169.39,169.25,24.12412736]
[1740165998206,0.04402935,169.34,169.3,0.0386163]
[1740165999210,5.9058,169.33,169.3,0.0386163]
[1740165999503,0.04402935,169.34,169.3,0.0386163]
[1740165999904,0.04402935,169.34,169.23,24.12412736]
[1740166000299,194.0,169.37,169.23,24.12412736]
[1740166000904,5.9051,169.35,169.26,5.9078]
[1740166001105,194.0,169.37,169.23,24.12412736]
[1740166001404,0.03784613,169.32,169.23,24.12412736]
[1740166001607,0.03784613,169.32,169.27,5.9073]
[1740166002104,0.03784613,169.32,169.23,24.12412736]
[1740166002609,0.03784613,169.32,169.26,24.12412736]
[1740166002809,0.03784613,169.32,169.31,5.9062]
[1740166003010,194.0,169.37,169.26,24.12412736]
[1740166003204,0.03980402,169.33,169.32,5.9058]
[1740166005513,0.03980402,169.33,169.26,24.12412736]
[1740166006005,0.03980402,169.33,169.23,24.12412736]
[1740166006408,194.0,169.37,169.23,24.12412736]
[1740166006608,0.04371515,169.3,169.23,24.12412736]
[1740166007210,0.04371515,169.3,169.29,5.9069]
[1740166007916,0.04371515,169.3,169.23,24.12412736]
[1740166008818,0.04371515,169.3,169.28,5.9072]
[1740166009318,0.04371515,169.3,169.27,5.9075]
[1740166009521,0.04371515,169.3,169.2,24.12412736]
[1740166009917,0.04371515,169.3,169.29,5.9069]
[1740166010320,194.0,169.34,169.2,24.12412736]
[1740166010515,194.0,169.34,169.23,24.12412736]
[1740166010716,0.03916075,169.29,169.21,24.12412736]
[1740166011125,0.03916075,169.29,169.28,5.9071]
[1740166014026,6.075e-05,169.29,169.28,5.9071]
[1740166022139,11.38531457,169.37,169.36,5.9044]
[1740166022333,11.38531457,169.37,169.28,15.08060503]
[1740166022835,11.38531457,169.37,169.36,5.9044]
[1740166023634,194.04208401,169.38,169.37,5.9041]
[1740166025233,0.04208401,169.38,169.37,5.9041]
[1740166029238,0.04208401,169.38,169.35,5.94366075]
[1740166029439,0.04208401,169.38,169.35,0.03916075]
[1740166030237,0.04208401,169.38,169.37,5.9041]
[1740166030437,0.04208401,169.38,169.35,0.03916075]
[1740166030634,0.04208401,169.38,169.37,5.9041]
[1740166031437,0.04208401,169.38,169.35,0.03916075]
[1740166031838,0.04208401,169.38,169.37,5.9041]
[1740166033031,0.04208401,169.38,169.35,0.03916075]
[1740166033735,0.04208401,169.38,169.35,5.94376075]
[1740166034042,0.04208401,169.38,169.35,0.03916075]
[1740166034239,0.04208401,169.38,169.36,5.9043]
[1740166034542,0.04208401,169.38,169.35,0.03916075]
[1740166035035,0.04208401,169.38,169.37,5.9041]
[1740166035242,438.0,169.37,169.2,8.16360518]
[1740166035442,196.17720833,169.36,169.21,24.10669686]
[1740166035644,196.17720833,169.36,169.24,24.10669686]
[1740166035645,194.0,169.35,169.24,24.10669686]
[1740166035941,11.38229234,169.35,169.3,24.10669686]
[1740166036437,0.03859502,169.34,169.3,24.10669686]
[1740166036642,0.03859502,169.34,169.26,24.10669686]
[1740166036943,5.9034,169.39,169.29,5.9068]
[1740166037146,0.04399131,169.32,169.29,5.9068]
[1740166037342,5.9034,169.39,169.26,24.10669686]
[1740166037541,0.04474517,169.32,169.26,24.10669686]
[1740166037846,0.04474517,169.32,169.27,1.7446]
[1740166038341,0.04474517,169.32,169.21,24.10669686]
[1740166038747,0.99631457,169.37,169.21,24.10669686]
[1740166038945,0.04481475,169.28,169.21,24.10669686]
[1740166039339,0.04481475,169.28,169.25,5.9081]
[1740166039541,27.24308707,169.38,169.27,24.10669686]
[1740166039748,11.38229234,169.38,169.27,24.10669686]
[1740166039947,11.38229234,169.38,169.28,5.907]
[1740166040150,11.38229234,169.38,169.3,24.10669686]
[1740166040346,11.38229234,169.38,169.31,5.9061]
[1740166040646,17.28599234,169.38,169.28,24.10669686]
[1740166040842,0.03798379,169.36,169.33,0.04007177]
[1740166042050,0.03798379,169.36,169.35,5.9048]
[1740166044050,1.8632,169.44,169.33,24.14676863]
[1740166044550,1.8632,169.44,169.33,24.10669686]
[1740166044849,11.40385149,169.46,169.36,24.10669686]
[1740166045252,0.040071,169.43,169.39,0.04205746]
[1740166045649,0.040071,169.43,169.39,24.14875432]
[1740166046249,0.040071,169.43,169.42,30.00899686]
[1740166046953,0.040071,169.43,169.42,5.9023]
[1740166047249,0.040071,169.43,169.39,0.04205746]
[1740166047847,0.040071,169.43,169.29,1.6991]
[1740166048050,5.9037,169.39,169.29,1.6991]
[1740166048353,194.0,169.42,169.28,24.10669686]
[1740166048543,194.0,169.42,169.31,24.10669686]
[1740166048748,3.6527,169.46,169.34,24.10669686]
[1740166048947,0.04007277,169.38,169.35,0.04074108]
[1740166049150,5.9017,169.44,169.35,0.04074108]
[1740166049356,5.9017,169.44,169.35,1.7799]
[1740166049555,0.04093542,169.38,169.35,1.7799]
[1740166049956,0.04093542,169.38,169.35,1.82064108]
[1740166051448,0.04093542,169.38,169.35,0.04074108]
[1740166052153,5.9044,169.36,169.35,0.04074108]
[1740166052371,0.04093542,169.38,169.25,24.10669686]
[1740166052559,5.9051,169.35,169.25,24.10669686]
[1740166052851,5.9051,169.35,169.23,3.623]
[1740166053059,5.9051,169.35,169.25,24.10669686]
[1740166053257,3.5764,169.37,169.25,24.10669686]
[1740166053552,0.03771382,169.32,169.25,24.10669686]
[1740166056160,0.03771382,169.32,169.28,24.10669686]
[1740166057360,0.03771382,169.32,169.31,5.9062]
[1740166057559,194.0,169.4,169.28,24.10669686]
[1740166058158,199.9033,169.4,169.28,24.10669686]
[1740166058359,194.0,169.4,169.28,24.10669686]
[1740166058554,194.0,169.4,169.36,5.9044]
[1740166058756,0.04244236,169.36,169.32,0.03771382]
[1740166058960,3.5593,169.42,169.32,1.7447]
[1740166059158,194.0,169.46,169.35,5.9048]
[1740166059159,1.127e-05,169.36,169.35,5.9048]
[1740166059663,5.9019,169.44,169.34,24.10669686]
[1740166059867,194.0,169.46,169.34,24.10669686]
[1740166060268,5.9017,169.44,169.39,5.9033]
[1740166060569,0.04484382,169.42,169.39,5.9033]
[1740166061063,0.04484382,169.42,169.38,0.04401333]
[1740166062270,0.04484382,169.42,169.39,5.9031]
[1740166063367,0.04484382,169.42,169.38,0.04401333]
[1740166068972,5.9027,169.41,169.38,0.04401333]
[1740166069174,0.04484382,169.42,169.38,0.04401333]
[1740166069378,5.94714382,169.42,169.38,0.04401333]
[1740166069570,0.04484382,169.42,169.38,0.04401333]
[1740166070470,194.0,169.41,169.29,24.10669686]
[1740166070671,194.0,169.41,169.28,1.8811]
[1740166070872,5.9048,169.35,169.28,1.8811]
[1740166071073,194.0,169.41,169.28,1.8811]
[1740166071375,5.9042,169.37,169.28,1.8811]
[1740166071575,194.0,169.41,169.28,1.8811]
[1740166071773,0.0391603,169.34,169.31,0.03420049]
[1740166072172,194.0,169.41,169.31,0.03420049]
[1740166072469,5.9045,169.36,169.31,0.03420049]
[1740166072875,0.03939944,169.38,169.31,0.03420049]
[1740166073074,5.9044,169.36,169.31,0.03420049]
[1740166073266,0.03939944,169.38,169.31,0.03420049]
[1740166073667,5.9054,169.34,169.31,0.03420049]
[1740166073869,1.7222,169.37,169.31,0.03420049]
[1740166074065,0.03887498,169.34,169.31,0.03420049]
[1740166074677,0.03887498,169.34,169.31,5.94010049]
[1740166075084,0.03887498,169.34,169.31,0.03420049]
[1740166075675,0.03887498,169.34,169.32,5.9058]
[1740166075876,0.03887498,169.34,169.31,0.03420049]
[1740166077275,0.03887498,169.34,169.33,5.9055]
[1740166077880,0.03887498,169.34,169.33,20.9763034]
[1740166079183,1.7219,169.4,169.37,5.9039]
[1740166079375,1.8757,169.44,169.33,15.0708034]
[1740166079979,1.8757,169.44,169.36,15.0708034]
[1740166080379,1.8757,169.44,169.38,0.03741713]
[1740166080581,0.03771888,169.42,169.38,0.03741713]
[1740166081085,0.03771888,169.42,169.41,5.9027]
[1740166082077,1.888e-05,169.42,169.41,5.9027]
[1740166082282,3.5177,169.49,169.45,5.9012]
[1740166082482,4.39325,169.5,169.43,15.0708034]
[1740166082686,4.39325,169.5,169.43,24.07316962]
[1740166083185,4.39325,169.5,169.37,5.3192]
[1740166083484,0.00431942,169.48,169.46,24.07316962]
[1740166083684,4.39325,169.5,169.47,1.7313]
[1740166083886,160.17058267,169.58,169.49,24.07316962]
[1740166084691,161.56173267,169.58,169.49,24.07316962]
[1740166084889,0.04126652,169.55,169.52,0.04187409]
[1740166085693,0.04126652,169.55,169.43,33.03316962]
[1740166085994,1.39115,169.58,169.43,33.03316962]
[1740166085995,5.8988,169.53,169.43,33.03316962]
[1740166086192,5.8988,169.53,169.38,5.342]
[1740166086193,195.39115,169.58,169.4,24.07316962]
[1740166086390,0.99805406,169.57,169.4,24.07316962]
[1740166086586,0.99805406,169.57,169.43,24.07316962]
[1740166086792,195.39115,169.58,169.43,24.07316962]
[1740166086993,0.03948326,169.5,169.47,0.04001496]
[1740166087395,195.39115,169.58,169.43,24.07316962]
[1740166087594,0.03783678,169.5,169.47,0.04326939]
[1740166087791,5.8982,169.54,169.43,24.07316962]
[1740166087994,195.39115,169.58,169.43,24.07316962]
[1740166088295,0.03845628,169.5,169.47,0.04051285]
[1740166088694,195.39115,169.58,169.46,24.07316962]
[1740166088998,195.39115,169.58,169.49,24.07316962]
[1740166089194,1.39115,169.58,169.49,24.07316962]
[1740166089392,0.03937361,169.54,169.49,24.07316962]
[1740166089696,0.03937361,169.54,169.45,1.8859]
[1740166089697,0.03937361,169.54,169.52,24.11736968]
[1740166089893,1.39115,169.58,169.52,24.11736968]
[1740166090088,1.39115,169.58,169.52,24.07316962]
[1740166090291,1.39115,169.58,169.55,24.07316962]
[1740166091193,1.43442303,169.58,169.55,24.11078545]
[1740166091398,1.7489,169.64,169.55,24.11078545]
[1740166092491,1.7489,169.64,169.58,24.07316962]
[1740166092691,0.04424475,169.61,169.58,24.07316962]
[1740166093089,0.04424475,169.61,169.58,24.11531279]
[1740166094000,0.04424475,169.61,169.58,0.04214317]
[1740166096697,0.04424475,169.61,169.49,24.07316962]
[1740166097203,5.8977,169.56,169.49,24.07316962]
[1740166097392,24.07316962,169.6,169.46,24.07316962]
[1740166097594,0.99904082,169.59,169.43,24.07316962]
[1740166097798,5.8986,169.53,169.43,24.07316962]
[1740166097998,0.04158424,169.55,169.51,0.03910878]
[1740166098297,1.8572,169.58,169.43,24.07316962]
[1740166098502,1.8732,169.57,169.43,24.07316962]
[1740166098701,0.0405275,169.55,169.51,0.04125356]
[1740166099002,194.0,169.54,169.38,24.07316962]
[1740166099203,194.0,169.53,169.38,24.07316962]
[1740166099504,194.0,169.53,169.41,24.07316962]
[1740166099903,5.8993,169.51,169.41,24.07316962]
[1740166100199,0.0401603,169.49,169.45,0.04319573]
[1740166101307,0.0401603,169.49,169.47,24.07316962]
[1740166101699,1.8732,169.57,169.47,24.07316962]
[1740166101895,1.8572,169.58,169.5,24.07316962]
[1740166102102,5.8965,169.59,169.5,24.07316962]
[1740166102497,3.688,169.62,169.5,24.07316962]
[1740166102898,0.04348505,169.58,169.54,0.04391231]
[1740166105505,0.04348505,169.58,169.56,24.07316962]
[1740166106802,1.8083,169.68,169.56,24.07316962]
[1740166107198,5.8941,169.66,169.56,24.07316962]
[1740166107708,1.8083,169.68,169.56,24.07316962]
[1740166107901,5.8946,169.65,169.56,24.07316962]
[1740166108109,0.04413291,169.64,169.6,0.04485381]
[1740166108304,0.04413291,169.64,169.5,24.07316962]
[1740166108502,5.8953,169.63,169.5,24.07316962]
[1740166109102,5.8947,169.64,169.53,24.07316962]
[1740166109406,194.0,169.65,169.5,24.07316962]
[1740166109708,5.8967,169.59,169.57,0.03891258]
[1740166109908,0.04258037,169.6,169.57,0.03891258]
[1740166111211,0.04258037,169.6,169.47,1.819]
[1740166111413,24.11574999,169.6,169.44,24.07316962]
[1740166111616,3.6199,169.59,169.44,24.07316962]
[1740166112107,194.0,169.58,169.43,1.8501]
[1740166112311,5.8998,169.5,169.39,8.86]
[1740166112506,24.11196933,169.54,169.38,24.07316962]
[1740166112709,194.0,169.53,169.38,24.07316962]
[1740166112906,194.0,169.52,169.38,24.07316962]
[1740166113512,218.07316962,169.51,169.36,140.44]
[1740166113710,0.04302551,169.47,169.43,0.04506062]
[1740166114409,0.04302551,169.47,169.36,140.44]
[1740166114812,3.6425,169.49,169.36,140.44]
[1740166115013,194.0,169.48,169.39,5.9033]
[1740166115214,194.0,169.48,169.36,140.44]
[1740166115512,0.03847624,169.45,169.42,0.02735607]
[1740166118012,5.902,169.43,169.42,0.02735607]
[1740166119609,5.9017,169.44,169.42,0.02735607]
[1740166120111,5.9018,169.44,169.42,0.02735607]
[1740166120809,5.93977624,169.45,169.42,0.02735607]
[1740166121010,0.03847624,169.45,169.42,0.02735607]
[1740166121216,5.93987624,169.45,169.42,0.02735607]
[1740166121417,0.03847624,169.45,169.42,0.02735607]
[1740166121813,5.9019,169.44,169.42,0.02735607]
[1740166122214,0.03847624,169.45,169.42,0.02735607]
[1740166122612,0.03847624,169.45,169.43,5.9017]
[1740166123016,0.03847624,169.45,169.42,5.92955607]
[1740166123719,0.03847624,169.45,169.42,0.02735607]
[1740166124214,5.93977624,169.45,169.42,0.02735607]
[1740166124415,0.03847624,169.45,169.42,0.02735607]
[1740166124626,0.03847624,169.45,169.42,5.92935607]
[1740166124916,0.03847624,169.45,169.42,0.02735607]
[1740166125919,5.9018,169.44,169.42,0.02735607]
[1740166126321,0.03847624,169.45,169.42,0.02735607]
[1740166127717,5.93987624,169.45,169.42,0.02735607]
[1740166127921,0.03847624,169.45,169.42,0.02735607]
[1740166128317,0.03847624,169.45,169.43,5.9017]
[1740166128718,0.03847624,169.45,169.42,0.02735607]
[1740166128923,0.03847624,169.45,169.44,5.9016]
[1740166129223,3.4985,169.53,169.44,24.07316962]
[1740166129924,9.397,169.53,169.48,5.9]
[1740166130123,9.397,169.53,169.44,24.07316962]
[1740166130324,0.04058524,169.5,169.47,0.04128289]
[1740166131022,0.04058524,169.5,169.41,24.07316962]
[1740166131023,0.04058524,169.5,169.37,1.8523]
[1740166131214,194.0,169.49,169.35,24.07316962]
[1740166131419,1.8432,169.48,169.35,24.07316962]
[1740166131715,194.0,169.49,169.41,24.07316962]
[1740166132220,0.04458813,169.47,169.43,0.02454942]
[1740166133223,5.9016,169.44,169.43,0.02454942]
[1740166133528,1.8014,169.46,169.43,0.02454942]
[1740166134321,5.9015,169.45,169.43,0.02454942]
[1740166134921,1.8014,169.46,169.43,0.02454942]
[1740166135225,0.04458813,169.47,169.43,0.02454942]
[1740166135423,5.94538813,169.47,169.43,0.02454942]
[1740166137025,0.04458813,169.47,169.43,0.02454942]
[1740166137214,5.94528813,169.47,169.43,0.02454942]
[1740166137414,0.04458813,169.47,169.43,0.02454942]
[1740166137619,0.04458813,169.47,169.44,5.9016]
[1740166137815,0.04458813,169.47,169.43,0.02454942]
[1740166138224,5.9016,169.44,169.43,0.02454942]
[1740166138824,5.9013,169.45,169.43,0.02454942]
[1740166139028,0.04458813,169.47,169.43,0.02454942]
[1740166140724,0.04458813,169.47,169.45,24.07316962]
[1740166140921,199.4548,169.58,169.45,24.07316962]
[1740166141123,5.8975,169.56,169.45,24.07316962]
[1740166141323,3.5724,169.58,169.45,24.07316962]
[1740166141519,1.7718,169.57,169.45,24.07316962]
[1740166142127,0.04441714,169.53,169.49,0.04436364]
[1740166143332,0.55309714,169.53,169.49,0.04436364]
[1740166144427,0.55309714,169.53,169.39,24.07316962]
[1740166144628,5.9,169.49,169.39,24.07316962]
[1740166145030,194.0,169.52,169.39,24.07316962]
[1740166145330,194.0,169.52,169.42,24.07316962]
[1740166145633,194.0,169.52,169.44,0.02477391]
[1740166145634,0.04337295,169.47,169.44,0.02477391]
[1740166146828,0.04337295,169.47,169.36,24.07316962]
[1740166147029,194.0,169.46,169.32,150.43316962]
[1740166147229,195.8278,169.45,169.32,150.43316962]
[1740166147429,194.0,169.44,169.32,126.36]
[1740166148034,0.04292796,169.4,169.32,126.36]
[1740166148434,5.94602796,169.4,169.32,126.36]
[1740166148830,0.04292796,169.4,169.32,126.36]
[1740166149234,0.04292796,169.4,169.31,1.8426]
[1740166149427,194.0,169.39,169.28,24.07316962]
[1740166149632,5.9054,169.34,169.25,24.07316962]
[1740166150034,195.7182,169.38,169.25,24.07316962]
[1740166150235,0.04186179,169.31,169.25,24.07316962]
[1740166151537,0.04186179,169.31,169.27,5.9072]
[1740166151741,0.04186179,169.31,169.22,24.07316962]
[1740166152035,1.7529,169.36,169.22,24.07316962]
[1740166152235,0.04352841,169.28,169.22,24.07316962]
[1740166152633,5.95102841,169.28,169.23,5.9086]
[1740166153035,0.04352841,169.28,169.22,24.07316962]
[1740166153637,5.9076,169.27,169.22,29.98236962]
[1740166154032,0.04352841,169.28,169.22,24.07316962]
[1740166154636,0.04352841,169.28,169.25,24.07316962]
[1740166154945,1.7328,169.35,169.23,5.9087]
[1740166155139,0.04401119,169.28,169.23,5.9087]
[1740166155538,5.9076,169.27,169.22,29.98236962]
[1740166155734,0.04401119,169.28,169.19,24.07316962]
[1740166156142,5.95087073,169.25,169.2,5.9099]
[1740166156340,0.04227073,169.25,169.2,5.9099]
[1740166156841,5.95087073,169.25,169.2,5.9099]
[1740166157234,0.04227073,169.25,169.18,5.9106]
[1740166157435,0.04227073,169.25,169.12,27.67656962]
[1740166157742,5.9117,169.16,169.11,30.36170882]
[1740166158242,0.04443834,169.2,169.11,30.36170882]
[1740166158544,0.0451849,169.15,169.11,30.36170882]
[1740166159041,199.5588,169.23,169.11,30.36170882]
[1740166159237,0.04013402,169.15,169.11,30.36170882]
[1740166159441,5.9095,169.22,169.14,5.9121]
[1740166159645,199.5588,169.23,169.14,5.9121]
[1740166159839,0.03772453,169.2,169.14,5.9121]
[1740166161543,0.03772453,169.2,169.11,30.36170882]
[1740166162939,0.03772453,169.2,169.14,5.912]
[1740166163442,0.03772453,169.2,169.11,30.36170882]
[1740166169352,0.03772453,169.2,169.16,5.9114]
[1740166170049,0.03772453,169.2,169.11,30.36170882]
[1740166171352,5.94782453,169.2,169.11,30.36170882]
[1740166171549,0.03772453,169.2,169.11,30.36170882]
[1740166172353,0.03772453,169.2,169.15,5.9115]
[1740166172550,0.03772453,169.2,169.11,30.36170882]
[1740166174858,0.03772453,169.2,169.16,5.9113]
[1740166175849,0.03772453,169.2,169.11,30.36170882]
[1740166176554,5.9106,169.19,169.11,30.36170882]
[1740166176958,0.03772453,169.2,169.11,30.36170882]
[1740166177358,5.9107,169.18,169.11,30.36170882]
[1740166177558,0.03772453,169.2,169.11,30.36170882]
[1740166177755,5.91,169.2,169.15,5.9115]
[1740166177959,0.04385722,169.17,169.15,5.9115]
[1740166178261,5.9104,169.19,169.15,5.9117]
[1740166178559,0.03939737,169.18,169.15,5.9117]
[1740166178756,0.03939737,169.18,169.11,30.36170882]
[1740166178957,0.03939737,169.18,169.15,5.9117]
[1740166179557,0.03939737,169.18,169.11,30.36170882]
[1740166180158,0.03939737,169.18,169.15,5.9116]
[1740166180363,0.03939737,169.18,169.11,30.36170882]
[1740166181261,5.95039737,169.18,169.13,5.9124]
[1740166181561,0.03939737,169.18,169.11,30.36170882]
[1740166182963,0.03939737,169.18,169.15,5.9115]
[1740166183665,5.95019737,169.18,169.15,5.9115]
[1740166184161,0.03939737,169.18,169.15,5.9115]
[1740166184364,5.95019737,169.18,169.15,5.9115]
[1740166185662,5.95019737,169.18,169.14,5.912]
[1740166186472,5.95019737,169.18,169.14,5.9118]
[1740166186665,5.95019737,169.18,169.11,30.36170882]
[1740166187271,5.9111,169.17,169.11,30.36170882]
[1740166187969,0.03939737,169.18,169.11,30.36170882]
[1740166188368,5.95029737,169.18,169.14,5.9118]
[1740166188565,0.03939737,169.18,169.14,5.9118]
[1740166189065,5.95019737,169.18,169.14,5.9118]
[1740166189266,5.95019737,169.18,169.11,32.07840882]
[1740166189462,5.95019737,169.18,169.15,5.9115]
[1740166190467,0.03939737,169.18,169.13,24.07316962]
[1740166191676,0.03939737,169.18,169.17,5.911]
[1740166191870,5.9094,169.22,169.13,24.07316962]
[1740166192363,5.9092,169.23,169.18,5.9107]
[1740166193073,0.04520376,169.22,169.19,0.03872301]
[1740166193473,0.04520376,169.22,169.19,5.94902301]
[1740166195073,5.95460376,169.22,169.19,0.03872301]
[1740166195769,0.04520376,169.22,169.19,0.03872301]
[1740166196167,5.95460376,169.22,169.19,5.94892301]
[1740166197574,5.9098,169.21,169.19,5.94902301]
[1740166197869,0.04520376,169.22,169.19,5.94902301]
[1740166198474,5.95480376,169.22,169.19,5.94902301]
[1740166198667,0.04520376,169.22,169.19,5.94902301]
[1740166199075,5.9097,169.21,169.19,0.03872301]
[1740166199472,0.04520376,169.22,169.21,5.9096]
[1740166199774,0.04520376,169.22,169.19,0.03872301]
[1740166201175,5.9099,169.21,169.19,0.03872301]
[1740166201768,0.04520376,169.22,169.19,0.03872301]
[1740166202276,5.95470376,169.22,169.19,5.94882301]
[1740166202478,0.04520376,169.22,169.19,0.03872301]
[1740166203477,5.9099,169.21,169.19,0.03872301]
[1740166204583,0.04520376,169.22,169.2,5.91]
[1740166204875,0.04520376,169.22,169.19,0.03872301]
[1740166205275,194.0,169.28,169.21,5.9094]
[1740166205681,5.9078,169.27,169.2,1.7079]
[1740166206072,0.49981,169.29,169.2,3.5213]
[1740166206277,0.49981,169.29,169.24,5.9084]
[1740166206476,0.04285967,169.26,169.23,0.04193334]
[1740166206872,0.04285967,169.26,169.25,5.9083]
[1740166207076,0.49981,169.29,169.23,0.04193334]
[1740166207981,0.49981,169.29,169.26,5.9078]
[1740166208282,0.54316379,169.29,169.23,0.04193334]
[1740166208778,0.54316379,169.29,169.24,15.09760693]
[1740166210482,0.54316379,169.29,169.28,5.9072]
[1740166210985,11.47207291,169.38,169.27,15.13967023]
[1740166211183,11.47207291,169.38,169.3,15.09760693]
[1740166211387,22.76645597,169.42,169.3,15.09760693]
[1740166211584,5.9031,169.4,169.33,5.9054]
[1740166211775,34.20265523,169.42,169.33,5.9054]
[1740166211975,34.20265523,169.42,169.3,15.09760693]
[1740166212176,0.03876932,169.39,169.36,0.04525975]
[1740166212584,5.9037,169.38,169.36,0.04525975]
[1740166212782,0.03876932,169.39,169.36,0.04525975]
[1740166212981,15.09760693,169.37,169.28,1.8599]
[1740166213186,15.09760693,169.37,169.23,15.09760693]
[1740166213382,194.0,169.36,169.23,15.09760693]
[1740166213787,15.09760693,169.34,169.22,1.8463]
[1740166214189,15.09760693,169.34,169.26,0.03804372]
[1740166214190,0.04132397,169.3,169.26,0.03804372]
[1740166215289,0.04132397,169.3,169.26,15.13565065]
[1740166215490,210.80580693,169.43,169.29,15.09760693]
[1740166215690,1.0016295,169.42,169.32,15.09760693]
[1740166216188,5.9038,169.38,169.32,15.09760693]
[1740166216388,5.3309,169.43,169.32,15.09760693]
[1740166216581,1.00160811,169.42,169.32,15.09760693]
[1740166216786,0.04190698,169.37,169.33,0.04502263]
[1740166216981,5.9049,169.35,169.33,0.04502263]
[1740166217185,0.04190698,169.37,169.33,0.04502263]
[1740166217490,5.94620698,169.37,169.33,5.95042263]
[1740166217789,0.04190698,169.37,169.34,15.09760693]
[1740166218582,0.04190698,169.37,169.36,5.9044]
[1740166219287,0.04190698,169.37,169.35,5.9047]
[1740166219592,0.04190698,169.37,169.34,15.09760693]
[1740166220084,0.04190698,169.37,169.36,5.9044]
[1740166220388,194.0,169.43,169.34,15.09760693]
[1740166220585,5.9014,169.45,169.4,5.903]
[1740166220783,5.9014,169.45,169.39,15.09760693]
[1740166220986,5.902,169.43,169.39,15.09760693]
[1740166221180,3.5792,169.47,169.35,1.8076]
[1740166221386,0.04245664,169.43,169.39,0.04373305]
[1740166221581,5.903,169.4,169.39,0.04373305]
[1740166223287,0.04245664,169.43,169.39,0.04373305]
[1740166223693,0.04245664,169.43,169.4,5.9029]
[1740166224384,0.04245664,169.43,169.39,0.04373305]
[1740166224685,0.04245664,169.43,169.4,5.9027]
[1740166224889,0.04245664,169.43,169.39,0.04373305]
[1740166227887,0.04245664,169.43,169.39,15.14133998]
[1740166228290,0.04245664,169.43,169.42,15.09760693]
[1740166228789,0.04245664,169.43,169.42,20.99990693]
[1740166229394,0.00391956,169.43,169.42,20.99990693]
[1740166229986,3.556,169.51,169.47,5.9006]
[1740166230192,1.803,169.58,169.45,15.09760693]
[1740166230495,1.00284517,169.57,169.48,15.09760693]
[1740166230994,1.803,169.58,169.45,15.09760693]
[1740166231189,5.8989,169.52,169.51,0.04053853]
[1740166231390,0.03876903,169.54,169.42,15.09760693]
[1740166231689,1.8071,169.53,169.42,15.09760693]
[1740166231885,1.87,169.52,169.4,3.4656]
[1740166232396,1.87,169.52,169.42,15.09760693]
[1740166232697,0.04066102,169.48,169.45,15.09760693]
[1740166232997,5.8979,169.55,169.45,15.09760693]
[1740166233292,1.7432,169.57,169.5,15.09760693]
[1740166233495,1.803,169.58,169.54,5.8981]
[1740166233797,1.8169,169.62,169.53,15.09760693]
[1740166233994,5.896,169.61,169.56,5.8974]
[1740166234194,0.03743032,169.58,169.54,0.04097436]
[1740166234698,0.03743032,169.58,169.55,5.8975]
[1740166234900,0.03743032,169.58,169.54,0.04097436]
[1740166235101,0.03743032,169.58,169.55,5.8975]
[1740166235299,0.03743032,169.58,169.54,0.04097436]
[1740166235802,0.03743032,169.58,169.55,5.8975]
[1740166236194,0.03743032,169.58,169.54,0.04097436]
[1740166236596,0.03743032,169.58,169.55,24.04942147]
[1740166236893,0.21294,169.61,169.58,5.8965]
[1740166237099,0.21294,169.61,169.55,25.88152147]
[1740166237297,0.21294,169.61,169.55,27.73092147]
[1740166238102,0.03738139,169.6,169.58,5.8966]
[1740166239901,0.03738139,169.6,169.59,5.8964]
[1740166241408,0.21294,169.61,169.6,5.8961]
[1740166242902,0.21294,169.61,169.58,24.04942147]